[Event "Istanbul Open 2018"]
[Site "Istanbul"]
[Date "2018.09.08"]
[Round "9"]
[White "Kuseyri, Mehmet Ali"]
[Black "Gulsoy, Mustafa Alpago"]
[Result "0-1"]
[ECO "D31"]
[WhiteElo "1962"]
[BlackElo "2061"]
[Annotator "NA"]
[PlyCount "76"]
[EventDate "2018.09.02"]
[EventType "swiss"]
[EventCountry "TUR"]
[SourceTitle "playchess.com"]
[Source "ChessBase"]
[SourceQuality "1"]
[TimeControl "5400+30"]

1. d4 {[%emt 0:00:30]} d5 {[%emt 0:00:30]} 2. c4 {[%emt 0:00:00]} e6 {[%emt 0:00:00]} 3. Nc3 {[%emt 0:00:00]} a6 {[%emt 0:00:00]} 4. cxd5 {[%emt 0:00:30]} exd5 {[%emt 0:00:00]} 5. Nf3 {[%emt 0:00:30]} h6 {[%emt 0:00:00]} 6. Bf4 {[%emt 0:00:30]} Nf6 {[%emt 0:01:30] LiveBook: 5 Partien} 7. e3 {[%emt 0:02:30]} b6 {[%emt 0:08:30]} 8. Be2 {[%emt 0:00:30]} Bb7 {[%emt 0:02:30]} 9. O-O {[%emt 0:00:30]} Bd6 {[%emt 0:02:30]} 10. Ne5 {[%emt 0:03:30]} Nbd7 $14 {[%emt 0:02:30]} 11. Bg4 {[%emt 0:13:30]} Qe7 {[%emt 0:05:30]} 12. Nxd7 {[%emt 0:05:30]} Nxd7 {[%emt 0:03:30]} 13. Bf3 {[%emt 0:07:30]} Nf6 {[%emt 0:00:30]} 14. Re1 {[%emt 0:09:30]} O-O {[%emt 0:00:30]} 15. Bxd6 {[%emt 0:00:30]} Qxd6 {[%emt 0:00:30]} 16. Qc2 {[%emt 0:02:30]} Rfe8 {[%emt 0:01:30]} 17. g3 {[%emt 0:01:30]} Re7 {[%emt 0:01:30]} 18. Rab1 {[%emt 0:02:30]} c5 {[%emt 0:03:30]} 19. dxc5 {[%emt 0:01:30]} bxc5 {[%emt 0:00:00]} 20. Na4 {[%emt 0:01:30]} Rc8 {[%emt 0:02:00]} 21. Rbc1 {[%emt 0:00:30]} Rec7 {[%emt 0:02:30]} 22. Qd2 {[%emt 0:02:30]} Qe6 {[%emt 0:02:30]} 23. Qa5 {[%emt 0:01:30]} Nd7 {[%emt 0:00:00]} 24. Bg2 {[%emt 0:02:30]} g6 {[%emt 0:12:00]} 25. Red1 {[%emt 0:02:30]} Kh7 {[%emt 0:02:30]} 26. b4 {[%emt 0:04:30]} d4 {[%emt 0:07:30]} 27. Bxb7 {[%emt 0:01:30]} Rxb7 {[%emt 0:00:00]} 28. exd4 {[%emt 0:04:30]} Rb5 {[%emt 0:00:00]} 29. d5 {[%emt 0:03:30]} Qf6 {[%emt 0:06:30]} 30. Nxc5 {[%emt 0:00:30]} Rxa5 {[%emt 0:00:30]} 31. Nxd7 {[%emt 0:00:30]} Qd8 {[%emt 0:00:00]} 32. Rxc8 {[%emt 0:00:30]} Qxc8 {[%emt 0:01:00]} 33. Nf6+ {[%emt 0:06:30]} Kg7 {[%emt 0:00:30]} 34. bxa5 {[%emt 0:00:30]} Kxf6 {[%emt 0:00:30]} 35. d6 {[%emt 0:00:52]} Qc2 {[%emt 0:00:00]} 36. Rd4 {[%emt 0:03:16]} Qxa2 {[%emt 0:00:00]} 37. Rf4+ {[%emt 0:02:14]} Ke6 {[%emt 0:00:30]} 38. d7 {[%emt 0:00:56]} Kxd7 {[%emt 0:00:00]} 0-1

[Event "Istanbul Open 2018"]
[Site "Istanbul"]
[Date "2018.09.08"]
[Round "9"]
[White "Tirak, Mert"]
[Black "Darban, Morteza"]
[Result "*"]
[ECO "B07"]
[WhiteElo "1941"]
[BlackElo "2333"]
[Annotator "NA"]
[PlyCount "70"]
[EventDate "2018.09.02"]
[EventType "swiss"]
[EventCountry "TUR"]
[SourceTitle "playchess.com"]
[Source "ChessBase"]
[SourceQuality "1"]
[TimeControl "5400+30"]

1. e4 {[%emt 0:00:30]} d6 {[%emt 0:03:30]} 2. d4 {[%emt 0:00:30]} g6 {[%emt 0:00:00]} 3. Nf3 {[%emt 0:00:00]} Bg7 {[%emt 0:03:00]} 4. c3 {[%emt 0:01:00]} Nd7 {[%emt 0:07:30]} 5. Bd3 {[%emt 0:01:30]} e5 {[%emt 0:00:30]} 6. O-O {[%emt 0:00:30]} Ngf6 {[%emt 0:00:30]} 7. Re1 {[%emt 0:00:30]} O-O {[%emt 0:00:00]} 8. Nbd2 {[%emt 0:00:30]} b6 {[%emt 0:02:00] LiveBook: 75 Partien} 9. a4 {[%emt 0:01:30]} a5 {[%emt 0:01:30] B07: Pirc Defence: Miscellaneous Systems} 10. Qc2 {[%emt 0:09:30]} Bb7 {[%emt 0:00:30]} 11. dxe5 $146 {[%emt 0:00:30]} ({Predecessor:} 11. d5 Nh5 12. Nf1 Ndf6 13. b4 Nf4 14. bxa5 Rxa5 15. c4 Bc8 16. Ne3 Ng4 17. Bd2 {1-0 (52) Dominguez Perez,L (2594)-Chatalbashev,B (2529) Saint Vincent 2002}) 11... dxe5 {[%emt 0:00:30]} 12. b4 {[%emt 0:02:30]} Nh5 {[%emt 0:11:30]} 13. g3 {[%emt 0:02:30]} Qf6 {[%emt 0:00:00]} 14. Kg2 {[%emt 0:07:30]} Qe6 {[%emt 0:10:00]} 15. Nc4 {[%emt 0:09:30]} Nf4+ {[%emt 0:10:30]} 16. Bxf4 {[%emt 0:20:30]} exf4 {[%emt 0:00:30]} 17. Rad1 {[%emt 0:04:30]} Rfd8 {[%emt 0:03:30]} 18. Nd4 {[%emt 0:15:30]} Qe7 $15 {[%emt 0:07:30]} (18... Bxd4 $1 $17 19. cxd4 axb4) 19. bxa5 {[%emt 0:00:34]} bxa5 {[%emt 0:03:30]} 20. Rb1 {[%emt 0:02:26]} Nc5 {[%emt 0:02:30]} 21. Rxb7 {[%emt 0:02:37]} f3+ {[%emt 0:10:30]} 22. Kxf3 {[%emt 0:02:56]} Nxb7 {[%emt 0:00:00]} 23. e5 {[%emt 0:00:23]} Nc5 {[%emt 0:02:00]} 24. Nc6 {[%emt 0:04:55]} Rxd3+ {[%emt 0:00:45]} 25. Qxd3 {[%emt 0:00:33]} Qe6 {[%emt 0:00:23]} 26. Ne7+ {[%emt 0:03:37]} Qxe7 {[%emt 0:00:22]} 27. Qd5 {[%emt 0:00:18]} Rd8 {[%emt 0:00:30]} 28. Qc6 {[%emt 0:00:02]} Nd3 {[%emt 0:00:30]} 29. Re3 {[%emt 0:00:03]} Nxe5+ {[%emt 0:00:30]} 30. Nxe5 {[%emt 0:00:08]} Bxe5 {[%emt 0:00:30]} 31. Kg2 {[%emt 0:00:35]} Qd6 {[%emt 0:01:01]} 32. Qb5 {[%emt 0:03:09]} Qd5+ {[%emt 0:00:41]} 33. Qxd5 {[%emt 0:00:05]} Rxd5 {[%emt 0:00:09]} 34. c4 {[%emt 0:00:02]} Rc5 {[%emt 0:00:09]} 35. f4 {[%emt 0:00:30]} Bd4 {[%emt 0:01:05]} *

[Event "Istanbul Open 2018"]
[Site "Istanbul"]
[Date "2018.09.08"]
[Round "9"]
[White "Asgarov, Nihad"]
[Black "Sarikavak, Serdar Ihsan"]
[Result "*"]
[ECO "B84"]
[WhiteElo "1937"]
[BlackElo "1798"]
[Annotator "NA"]
[PlyCount "56"]
[EventDate "2018.09.02"]
[EventType "swiss"]
[EventCountry "TUR"]
[SourceTitle "playchess.com"]
[Source "ChessBase"]
[SourceQuality "1"]
[TimeControl "5400+30"]

1. e4 {[%emt 0:00:30]} c5 {[%emt 0:00:30]} 2. Nf3 {[%emt 0:00:00]} d6 {[%emt 0:00:00]} 3. d4 {[%emt 0:00:00]} cxd4 {[%emt 0:00:00]} 4. Nxd4 {[%emt 0:00:00]} Nf6 {[%emt 0:00:00]} 5. Nc3 {[%emt 0:02:00] LiveBook: 99242 Partien} a6 {[%emt 0:01:00]} 6. Be3 {[%emt 0:00:00]} e6 {[%emt 0:00:30]} 7. Be2 {[%emt 0:00:00]} Nbd7 {[%emt 0:00:30]} 8. O-O {[%emt 0:00:30]} Qc7 {[%emt 0:01:30]} 9. a4 {[%emt 0:00:00]} b6 {[%emt 0:01:30]} 10. f3 $11 {[%emt 0:09:00]} Bb7 {[%emt 0:02:30]} 11. g4 {[%emt 0:00:00]} h6 {[%emt 0:02:30]} 12. Rf2 {[%emt 0:06:00]} d5 {[%emt 0:03:30]} 13. exd5 {[%emt 0:00:30]} Nxd5 {[%emt 0:00:30]} 14. Nxd5 {[%emt 0:00:30]} Bxd5 {[%emt 0:00:30]} 15. Qf1 {[%emt 0:01:30]} Bb7 {[%emt 0:03:30]} 16. Bc4 {[%emt 0:02:30]} Ne5 {[%emt 0:05:30]} 17. Bb3 {[%emt 0:02:30]} Bc5 {[%emt 0:15:30]} 18. c3 {[%emt 0:05:30]} g5 {[%emt 0:20:30]} 19. Re1 {[%emt 0:05:30]} O-O {[%emt 0:09:30]} 20. Ba2 {[%emt 0:23:30]} Qd7 {[%emt 0:16:59]} 21. Qh3 {[%emt 0:01:30]} Kg7 {[%emt 0:01:09]} 22. f4 {[%emt 0:16:30]} Nd3 {[%emt 0:08:36]} 23. fxg5 {[%emt 0:00:30]} h5 {[%emt 0:02:37]} 24. Rd2 {[%emt 0:06:31]} Nxe1 {[%emt 0:02:37]} 25. Nf5+ {[%emt 0:00:49]} exf5 {[%emt 0:00:06]} 26. Rxd7 {[%emt 0:00:12]} fxg4 {[%emt 0:00:44]} 27. Qxh5 {[%emt 0:02:42]} Bxe3+ {[%emt 0:00:37]} 28. Kf1 {[%emt 0:00:09]} Bf3 {[%emt 0:00:32]} *

[Event "Istanbul Open 2018"]
[Site "Istanbul"]
[Date "2018.09.08"]
[Round "9"]
[White "Tahaoglu, Ugur Barkin"]
[Black "Oztekin, Kerem Can"]
[Result "1-0"]
[ECO "A43"]
[WhiteElo "1893"]
[BlackElo "1943"]
[Annotator "NA"]
[PlyCount "33"]
[EventDate "2018.09.02"]
[EventType "swiss"]
[EventCountry "TUR"]
[SourceTitle "playchess.com"]
[Source "ChessBase"]
[SourceQuality "1"]
[TimeControl "5400+30"]

1. d4 {[%emt 0:02:30]} Nf6 {[%emt 0:00:30]} 2. Nf3 {[%emt 0:00:30]} c5 {[%emt 0:00:00]} 3. d5 {[%emt 0:00:30]} e6 {[%emt 0:01:00]} 4. Nc3 {[%emt 0:01:30]} exd5 {[%emt 0:00:30]} 5. Nxd5 {[%emt 0:00:30]} Nxd5 {[%emt 0:00:30]} 6. Qxd5 {[%emt 0:00:30]} Be7 {[%emt 0:00:00]} 7. Bf4 $14 {[%emt 0:01:30] LiveBook: 11 Games} O-O {[%emt 0:01:00]} 8. O-O-O {[%emt 0:02:30]} Nc6 {[%emt 0:00:30]} 9. Bd6 {[%emt 0:01:30]} Qa5 {[%emt 0:08:30]} 10. a3 {[%emt 0:04:30]} Bxd6 {[%emt 0:13:30]} 11. Qxd6 {[%emt 0:01:30]} c4 {[%emt 0:01:30]} 12. Rd5 {[%emt 0:20:30]} b5 {[%emt 0:01:30]} 13. Rg5 {[%emt 0:13:30]} c3 {[%emt 0:21:30]} 14. Qh6 {[%emt 0:05:30]} cxb2+ {[%emt 0:00:30]} 15. Kxb2 {[%emt 0:00:00]} g6 {[%emt 0:00:00]} 16. Rh5 {[%emt 0:01:00]} Re8 {[%emt 0:04:00]} 17. Ng5 {[%emt 0:00:30]} 1-0

[Event "Istanbul Open 2018"]
[Site "Istanbul"]
[Date "2018.09.08"]
[Round "9"]
[White "Aydin, Kaan Ayhan"]
[Black "Eryigit, Yakup"]
[Result "1/2-1/2"]
[ECO "B90"]
[WhiteElo "1877"]
[BlackElo "2030"]
[Annotator "NA"]
[PlyCount "87"]
[EventDate "2018.09.02"]
[EventType "swiss"]
[EventCountry "TUR"]
[SourceTitle "playchess.com"]
[Source "ChessBase"]
[SourceQuality "1"]
[TimeControl "5400+30"]

1. e4 {[%emt 0:04:30]} c5 {[%emt 0:01:30]} 2. Nf3 {[%emt 0:00:00]} d6 {[%emt 0:00:30]} 3. d4 {[%emt 0:00:00]} cxd4 {[%emt 0:00:30]} 4. Nxd4 {[%emt 0:00:00]} Nf6 {[%emt 0:00:30]} 5. Nc3 {[%emt 0:00:00]} a6 {[%emt 0:00:00]} 6. Rg1 {[%emt 0:02:30]} e5 {[%emt 0:07:00]} 7. Nb3 $1 {[%emt 0:01:30] LiveBook: 89 Partien} Be6 {[%emt 0:04:30]} 8. g4 {[%emt 0:00:30]} Nc6 {[%emt 0:00:30]} 9. g5 {[%emt 0:01:30]} Nd7 {[%emt 0:00:30]} 10. Be3 {[%emt 0:00:30]} Be7 {[%emt 0:02:30]} 11. Qd2 {[%emt 0:00:30]} O-O {[%emt 0:00:30]} 12. h4 {[%emt 0:03:30]} f5 {[%emt 0:12:30]} 13. exf5 {[%emt 0:06:30]} Rxf5 {[%emt 0:00:30]} (13... Bxf5 $14 14. Nd5 a5) 14. Bh3 {[%emt 0:01:30]} a5 $16 {[%emt 0:01:30]} 15. a3 {[%emt 0:08:30]} a4 {[%emt 0:00:30]} 16. Nc1 {[%emt 0:00:30]} g6 {[%emt 0:00:30]} 17. h5 {[%emt 0:04:30]} Qf8 {[%emt 0:01:30]} 18. Nd5 {[%emt 0:04:30]} Bd8 {[%emt 0:00:00]} 19. Ne2 {[%emt 0:02:30]} Ra5 {[%emt 0:02:00]} 20. Bxf5 {[%emt 0:00:30]} Qxf5 {[%emt 0:01:30]} 21. Ng3 {[%emt 0:05:30]} Qf7 {[%emt 0:06:30]} 22. hxg6 {[%emt 0:00:30]} hxg6 {[%emt 0:00:00]} 23. Nf6+ {[%emt 0:00:30]} Nxf6 {[%emt 0:00:00]} 24. gxf6 {[%emt 0:00:00]} d5 {[%emt 0:01:30]} 25. O-O-O {[%emt 0:03:00]} Bxf6 {[%emt 0:01:30]} 26. Nh5 {[%emt 0:03:30]} Bh8 {[%emt 0:00:30]} 27. Bb6 {[%emt 0:11:30]} Rb5 {[%emt 0:03:30]} 28. Qh6 {[%emt 0:00:00]} Bf5 {[%emt 0:00:30]} 29. Be3 {[%emt 0:06:00]} d4 {[%emt 0:17:30]} 30. Bd2 {[%emt 0:00:00]} Bxc2 {[%emt 0:00:30]} 31. Rg3 {[%emt 0:11:34]} Bf5 {[%emt 0:00:30]} 32. Rdg1 {[%emt 0:00:23]} Ne7 {[%emt 0:02:30]} 33. Bb4 {[%emt 0:02:17]} Rb6 {[%emt 0:04:30]} 34. Bxe7 {[%emt 0:02:39]} Qxe7 {[%emt 0:02:30]} 35. Rxg6+ {[%emt 0:05:39]} Rxg6 {[%emt 0:00:30]} 36. Rxg6+ {[%emt 0:00:08]} Bxg6 {[%emt 0:00:30]} 37. Qxg6+ {[%emt 0:00:02]} Bg7 {[%emt 0:01:30]} 38. Ng3 {[%emt 0:00:57]} Qf7 {[%emt 0:01:30]} 39. Qc2 {[%emt 0:01:13]} Qf3 {[%emt 0:03:30]} 40. Qf5 {[%emt 0:03:39]} Bh6+ {[%emt 0:00:30]} 41. Kc2 {[%emt 0:00:44]} Qc6+ {[%emt 0:01:30]} 42. Kd3 {[%emt 0:00:07]} Bf4 {[%emt 0:01:01]} 43. Ne4 {[%emt 0:00:36]} Qb5+ {[%emt 0:00:13]} 44. Kc2 {[%emt 0:00:09]} 1/2-1/2

[Event "Istanbul Open 2018"]
[Site "Istanbul"]
[Date "2018.09.08"]
[Round "9"]
[White "Ozsakallioglu, Akin"]
[Black "Nuri, Murad"]
[Result "0-1"]
[ECO "B36"]
[WhiteElo "1861"]
[BlackElo "2284"]
[Annotator "NA"]
[PlyCount "144"]
[EventDate "2018.09.02"]
[EventType "swiss"]
[EventCountry "TUR"]
[SourceTitle "playchess.com"]
[Source "ChessBase"]
[SourceQuality "1"]
[TimeControl "5400+30"]

1. e4 {[%emt 0:00:30]} c5 {[%emt 0:00:30]} 2. Nf3 {[%emt 0:00:00]} Nc6 {[%emt 0:00:00]} 3. c4 {[%emt 0:00:00]} g6 {[%emt 0:02:00]} 4. d4 {[%emt 0:04:30]} cxd4 {[%emt 0:00:30]} 5. Nxd4 {[%emt 0:00:00]} Nf6 {[%emt 0:00:00]} 6. Nc3 {[%emt 0:00:00]} d6 {[%emt 0:00:00]} 7. Be2 {[%emt 0:00:30]} Nxd4 {[%emt 0:00:30]} 8. Qxd4 {[%emt 0:00:30]} Bg7 {[%emt 0:00:00]} 9. Be3 {[%emt 0:00:30]} O-O {[%emt 0:00:00]} 10. Qd2 {[%emt 0:00:30]} a5 {[%emt 0:00:00] B36: Sizilianisch (Maroczy-Aufbau)} 11. f3 {[%emt 0:04:30]} (11. O-O a4 12. Bd4 Be6 13. f4 Qa5 14. Rad1 Rac8 15. b3 axb3 16. axb3 b5 17. Bxf6 Bxf6 18. Nxb5 Qxd2 19. Rxd2 Ra8 20. Nc7 Ra3 21. Nxe6 fxe6 {1-0 (58) Yu,Y (2759)-Bu,X (2718) Hangzhou 2018}) 11... a4 {[%emt 0:00:00]} 12. O-O {[%emt 0:00:30]} Qa5 {[%emt 0:00:30]} 13. Rab1 {[%emt 0:01:30]} Be6 {[%emt 0:00:30]} 14. Rfc1 {[%emt 0:05:30] LiveBook: 67 Games} Rfc8 {[%emt 0:00:30]} 15. b4 {[%emt 0:07:30]} axb3 {[%emt 0:00:30]} 16. axb3 {[%emt 0:00:30]} Qb4 {[%emt 0:01:30]} 17. Kf1 {[%emt 0:10:30]} Nd7 {[%emt 0:10:30]} 18. Nd5 {[%emt 0:08:30]} Qxd2 {[%emt 0:00:00]} 19. Bxd2 {[%emt 0:00:30]} Kf8 {[%emt 0:00:00]} 20. Be3 $146 {[%emt 0:00:30]} ({Vorgänger:} 20. Bg5 f6 21. Be3 f5 22. Nf4 Bf7 23. exf5 gxf5 24. Nd5 b5 25. Rd1 bxc4 26. bxc4 Rab8 {½-½ (26) Dolezal,C (2389)-Mekhitarian,K (2544) Buenos Aires 2017}) 20... Ra3 {[%emt 0:22:30]} 21. Nb6 {[%emt 0:15:30]} Nxb6 {[%emt 0:02:30]} 22. Bxb6 {[%emt 0:01:30]} f5 {[%emt 0:00:30]} 23. Bd3 {[%emt 0:00:30]} Be5 {[%emt 0:00:30]} 24. g3 {[%emt 0:12:30]} f4 {[%emt 0:00:30]} 25. g4 {[%emt 0:01:30]} g5 {[%emt 0:03:30]} 26. Bf2 {[%emt 0:02:30]} Kf7 {[%emt 0:08:30]} 27. Bg1 $17 {[%emt 0:04:06]} h5 {[%emt 0:00:30]} 28. h3 {[%emt 0:00:04]} Kf6 {[%emt 0:02:30]} 29. Bf2 {[%emt 0:00:46]} Rh8 {[%emt 0:01:30]} 30. Kg2 {[%emt 0:00:32]} Rha8 {[%emt 0:00:30]} 31. Kf1 {[%emt 0:00:14]} Ra2 {[%emt 0:02:30]} 32. Rc2 {[%emt 0:01:20]} Rxc2 {[%emt 0:12:30]} 33. Bxc2 {[%emt 0:00:08]} Ra2 {[%emt 0:00:30]} 34. Bd1 {[%emt 0:00:08]} h4 {[%emt 0:00:30]} 35. Be2 {[%emt 0:00:30]} Rc2 {[%emt 0:06:30]} 36. Bd3 {[%emt 0:02:05]} Rd2 {[%emt 0:00:30]} 37. Be2 {[%emt 0:00:18]} Ra2 {[%emt 0:00:00]} 38. Bb6 {[%emt 0:01:29]} Rc2 {[%emt 0:04:00]} 39. Bf2 {[%emt 0:02:44]} Bf7 {[%emt 0:01:30]} 40. Bb6 {[%emt 0:00:21]} Bc3 {[%emt 0:02:47]} 41. Bd1 {[%emt 0:06:26]} Ra2 {[%emt 0:10:13]} 42. Be2 {[%emt 0:01:59]} Ke5 {[%emt 0:00:48]} 43. Bd8 {[%emt 0:00:17]} Kf6 {[%emt 0:00:08]} 44. Rd1 {[%emt 0:00:29]} Be5 {[%emt 0:01:03]} 45. Rb1 {[%emt 0:02:38]} Rc2 {[%emt 0:00:51]} 46. Bb6 {[%emt 0:00:28]} Bc3 {[%emt 0:00:41]} 47. Bd1 {[%emt 0:00:29]} Rd2 {[%emt 0:00:01]} 48. Bf2 {[%emt 0:01:09]} Ra2 {[%emt 0:00:04]} 49. Be2 {[%emt 0:00:29]} Ke5 {[%emt 0:02:32]} 50. Bb6 {[%emt 0:00:11]} Bd4 {[%emt 0:00:50]} 51. Bd8 {[%emt 0:03:39]} Kf6 {[%emt 0:00:01]} 52. Rd1 {[%emt 0:00:00]} Bc5 {[%emt 0:00:06]} 53. b4 {[%emt 0:00:12]} Bxb4 {[%emt 0:00:51]} 54. Rb1 {[%emt 0:00:04]} Ra4 {[%emt 0:01:23]} 55. Rb2 {[%emt 0:00:54]} Be6 {[%emt 0:01:16]} 56. Bd1 {[%emt 0:01:45]} Bxc4+ {[%emt 0:00:13]} 57. Be2 {[%emt 0:00:48]} b5 {[%emt 0:00:48]} 58. Bb6 {[%emt 0:00:33]} Ke6 {[%emt 0:02:33]} 59. Bd4 {[%emt 0:00:21]} Ba3 {[%emt 0:00:39]} 60. Bxc4+ {[%emt 0:00:23]} Rxc4 {[%emt 0:00:12]} 61. Rxb5 {[%emt 0:00:04]} Rxd4 {[%emt 0:00:11]} 62. Rxg5 {[%emt 0:00:04]} Rd3 {[%emt 0:00:32]} 63. Kg2 {[%emt 0:00:30]} Rd2+ {[%emt 0:00:09]} 64. Kh1 {[%emt 0:00:22]} Rd1+ {[%emt 0:01:17]} 65. Kg2 {[%emt 0:00:12]} Rd2+ {[%emt 0:00:04]} 66. Kh1 {[%emt 0:00:03]} Bc5 {[%emt 0:00:03]} 67. Rf5 {[%emt 0:00:05]} Be3 {[%emt 0:00:33]} 68. Rh5 {[%emt 0:00:04]} Rf2 {[%emt 0:00:32]} 69. Rxh4 {[%emt 0:00:07]} Rxf3 {[%emt 0:00:02]} 70. Rh6+ {[%emt 0:00:08]} Ke5 {[%emt 0:00:04]} 71. g5 {[%emt 0:00:01]} Rg3 {[%emt 0:00:11]} 72. h4 {[%emt 0:00:14]} f3 {[%emt 0:00:02]} 0-1

[Event "Istanbul Open 2018"]
[Site "Istanbul"]
[Date "2018.09.08"]
[Round "9"]
[White "Emir, Emirhan"]
[Black "Aliakbarov, Anar"]
[Result "0-1"]
[ECO "E82"]
[WhiteElo "1852"]
[BlackElo "2322"]
[Annotator "NA"]
[PlyCount "82"]
[EventDate "2018.09.02"]
[EventType "swiss"]
[EventCountry "TUR"]
[SourceTitle "playchess.com"]
[Source "ChessBase"]
[SourceQuality "1"]
[TimeControl "5400+30"]

1. c4 {[%emt 0:00:30]} Nf6 {[%emt 0:04:30]} 2. Nc3 {[%emt 0:00:00]} g6 {[%emt 0:00:00]} 3. d4 {[%emt 0:00:00]} Bg7 {[%emt 0:00:00]} 4. e4 {[%emt 0:00:30]} d6 {[%emt 0:00:00]} 5. f3 {[%emt 0:00:00]} O-O {[%emt 0:00:00]} 6. Be3 {[%emt 0:00:00]} b6 {[%emt 0:00:00]} 7. Nge2 {[%emt 0:01:30]} c5 {[%emt 0:00:00]} 8. Qd2 {[%emt 0:01:30]} Nc6 {[%emt 0:00:30]} 9. d5 {[%emt 0:02:30] LiveBook: 63 Games} Ne5 {[%emt 0:00:00]} 10. Nc1 {[%emt 0:00:30]} Ba6 {[%emt 0:01:00] E82: King's Indian: Sämisch: 6...b6} (10... e6 11. Be2 a6 12. O-O exd5 13. exd5 Re8 14. Bg5 Qe7 15. h3 Qf8 16. f4 Ned7 17. f5 h6 18. Bh4 {1-0 (66) Caetano,H (2231)-Cruz,W (2274) Curitiba 2016}) 11. b3 {[%emt 0:00:30]} e6 {[%emt 0:01:30]} 12. Be2 $1 {[%emt 0:04:30]} exd5 {[%emt 0:00:30]} 13. cxd5 {[%emt 0:00:30]} Bxe2 {[%emt 0:00:00]} 14. N1xe2 {[%emt 0:00:30]} a6 {[%emt 0:02:00]} 15. O-O {[%emt 0:02:30]} b5 {[%emt 0:01:30]} 16. Rac1 $146 {[%emt 0:06:30]} ({Predecessor:} 16. a4 Qd7 17. Bh6 Bxh6 18. Qxh6 {0-1 (27) Bui,N-Nguyen,M Hanoi 1995}) 16... Re8 {[%emt 0:09:30]} 17. Kh1 $11 {[%emt 0:02:30]} Rc8 {[%emt 0:18:30]} 18. Ng3 {[%emt 0:01:30]} c4 {[%emt 0:11:30]} 19. Nce2 {[%emt 0:02:30]} h5 {[%emt 0:02:30]} 20. Bg5 {[%emt 0:01:30]} Nd3 {[%emt 0:05:30]} 21. Rc2 {[%emt 0:01:30]} h4 {[%emt 0:06:30]} 22. Bxh4 {[%emt 0:02:30]} Nxe4 {[%emt 0:00:00]} 23. Bxd8 {[%emt 0:02:30]} Nxd2 {[%emt 0:00:00]} 24. Rxd2 {[%emt 0:00:30]} Rexd8 {[%emt 0:00:00]} 25. Ne4 {[%emt 0:00:30]} Nc5 {[%emt 0:10:00]} 26. bxc4 {[%emt 0:08:30]} Nxe4 {[%emt 0:00:30]} 27. fxe4 {[%emt 0:00:00]} Rxc4 {[%emt 0:03:30]} 28. Ng3 {[%emt 0:01:00]} Be5 {[%emt 0:00:00]} 29. Rd3 {[%emt 0:00:30]} b4 {[%emt 0:00:00]} 30. Rdf3 {[%emt 0:01:30]} Rd7 {[%emt 0:00:30]} 31. a3 {[%emt 0:00:30]} a5 {[%emt 0:00:30]} 32. axb4 {[%emt 0:00:30]} Rxb4 {[%emt 0:00:30]} 33. Ra3 {[%emt 0:00:30]} a4 {[%emt 0:00:00]} 34. Re1 {[%emt 0:00:30]} Re7 {[%emt 0:01:00]} 35. Nf1 {[%emt 0:00:30]} Bb2 {[%emt 0:00:30]} 36. Ra2 {[%emt 0:00:30]} a3 {[%emt 0:00:30]} 37. Nd2 {[%emt 0:00:30]} f5 {[%emt 0:00:00]} 38. h3 {[%emt 0:00:30]} fxe4 {[%emt 0:00:00]} 39. Re3 {[%emt 0:00:30]} Rd4 {[%emt 0:01:30]} 40. Nf3 {[%emt 0:00:30]} exf3 {[%emt 0:00:30]} 41. Rxf3 {[%emt 0:00:30]} Rd2 {[%emt 0:00:30]} 0-1

[Event "Istanbul Open 2018"]
[Site "Istanbul"]
[Date "2018.09.08"]
[Round "9"]
[White "Hakkaki Fard, Pedram"]
[Black "Tahaoglu, Erkin"]
[Result "1/2-1/2"]
[ECO "D00"]
[WhiteElo "1815"]
[BlackElo "1613"]
[Annotator "NA"]
[PlyCount "60"]
[EventDate "2018.09.02"]
[EventType "swiss"]
[EventCountry "TUR"]
[SourceTitle "playchess.com"]
[Source "ChessBase"]
[SourceQuality "1"]
[TimeControl "5400+30"]

1. d4 {[%emt 0:00:30]} Nf6 {[%emt 0:02:30]} 2. Bf4 {[%emt 0:00:00]} d5 {[%emt 0:00:30]} 3. e3 {[%emt 0:00:00]} Bf5 {[%emt 0:00:00]} 4. c4 {[%emt 0:00:30]} e6 {[%emt 0:01:00]} 5. Qb3 {[%emt 0:02:30]} Nc6 {[%emt 0:02:30]} 6. Qxb7 {[%emt 0:27:30]} Nb4 {[%emt 0:06:30]} 7. Na3 {[%emt 0:01:30]} Nd3+ {[%emt 0:06:30]} 8. Bxd3 {[%emt 0:10:30]} Bxd3 {[%emt 0:00:30]} 9. Qc6+ {[%emt 0:03:30]} Ke7 {[%emt 0:04:30]} 10. Bxc7 {[%emt 0:09:30]} Qd7 {[%emt 0:08:30]} 11. Qxa8 {[%emt 0:10:30]} Qxc7 {[%emt 0:00:00]} 12. Nb5 {[%emt 0:00:30]} Qa5+ {[%emt 0:05:00]} 13. Nc3 {[%emt 0:00:30]} Qc7 {[%emt 0:12:30]} 14. c5 {[%emt 0:05:30]} g6 {[%emt 0:00:30]} 15. c6 {[%emt 0:09:40]} Ba6 {[%emt 0:00:30]} 16. Nb5 {[%emt 0:00:27]} Qa5+ {[%emt 0:03:30]} 17. Kd1 {[%emt 0:02:53]} Bxb5 {[%emt 0:01:30]} 18. Qb7+ {[%emt 0:00:25]} Kd6 {[%emt 0:01:30]} 19. c7 {[%emt 0:03:24]} Bh6 {[%emt 0:07:30]} 20. c8=N+ {[%emt 0:02:36]} Rxc8 {[%emt 0:00:30]} 21. Qxc8 {[%emt 0:00:05]} Ne4 {[%emt 0:02:30]} 22. Nf3 {[%emt 0:00:20]} Nxf2+ {[%emt 0:00:30]} 23. Kc2 {[%emt 0:02:36]} Bd3+ {[%emt 0:02:30]} 24. Kb3 {[%emt 0:00:17]} Qb5+ {[%emt 0:03:30]} 25. Ka3 {[%emt 0:00:15]} Qa5+ {[%emt 0:03:30]} 26. Kb3 {[%emt 0:00:08]} Bc4+ {[%emt 0:01:30]} 27. Kc2 {[%emt 0:00:37]} Bd3+ {[%emt 0:07:37]} 28. Kb3 {[%emt 0:00:18]} Qb5+ {[%emt 0:00:34]} 29. Ka3 {[%emt 0:00:09]} Qa5+ {[%emt 0:00:32]} 30. Kb3 {[%emt 0:00:10]} Qb5+ {[%emt 0:00:05]} 1/2-1/2